[Event "Late-Titled-Tuesday-Blitz-January-16-2024"]
[Site "Chess.com"]
[Date "2024.01.16"]
[Round "9"]
[White "babero_gordo"]
[Black "gxbg2000"]
[Result "1-0"]
[WhiteElo "1985"]
[BlackElo "2055"]
[TimeControl "180+1"]
[EndTime "15:46:52 PST"]
[Termination "babero_gordo won by checkmate"]

1. e4 {[%clk 0:03:00.9]} 1... e5 {[%clk 0:02:59.6]} 2. Nf3 {[%clk 0:02:59.7]}
2... Nc6 {[%clk 0:02:59.7]} 3. d4 {[%clk 0:02:58.3]} 3... exd4 {[%clk
0:02:59.2]} 4. Bc4 {[%clk 0:02:58.8]} 4... d6 {[%clk 0:02:59.8]} 5. Nxd4 {[%clk
0:02:58]} 5... Nf6 {[%clk 0:02:59.8]} 6. Nc3 {[%clk 0:02:56.8]} 6... Be7 {[%clk
0:02:59.6]} 7. O-O {[%clk 0:02:56.3]} 7... O-O {[%clk 0:03:00.2]} 8. h3 {[%clk
0:02:50.4]} 8... Nxe4 {[%clk 0:02:50.4]} 9. Nxc6 {[%clk 0:02:36.6]} 9... Nxc3
{[%clk 0:02:40.4]} 10. Nxe7+ {[%clk 0:02:35.6]} 10... Qxe7 {[%clk 0:02:39.9]}
11. bxc3 {[%clk 0:02:35.5]} 11... c6 {[%clk 0:02:37.3]} 12. Ba3 {[%clk
0:02:34.1]} 12... Rd8 {[%clk 0:02:35.5]} 13. Qf3 {[%clk 0:02:28.7]} 13... Be6
{[%clk 0:02:31.3]} 14. Rfe1 {[%clk 0:02:26.8]} 14... Qd7 {[%clk 0:02:30.7]} 15.
Bxe6 {[%clk 0:02:25.8]} 15... fxe6 {[%clk 0:02:30.8]} 16. Rad1 {[%clk
0:02:25.5]} 16... d5 {[%clk 0:02:31]} 17. Qg4 {[%clk 0:02:20.9]} 17... Re8
{[%clk 0:02:30]} 18. Re5 {[%clk 0:02:17.8]} 18... b6 {[%clk 0:02:28.7]} 19. Rde1
{[%clk 0:02:16.8]} 19... c5 {[%clk 0:02:23.3]} 20. Rxe6 {[%clk 0:02:14]} 20...
Rxe6 {[%clk 0:02:23.4]} 21. Qxe6+ {[%clk 0:02:13.8]} 21... Qxe6 {[%clk
0:02:23.2]} 22. Rxe6 {[%clk 0:02:13.9]} 22... Kf7 {[%clk 0:02:23.5]} 23. Re5
{[%clk 0:02:10.7]} 23... Rd8 {[%clk 0:02:22.9]} 24. Kf1 {[%clk 0:02:06.8]} 24...
Kf6 {[%clk 0:02:22.9]} 25. f4 {[%clk 0:02:06.2]} 25... g6 {[%clk 0:02:22.2]} 26.
g4 {[%clk 0:02:01.1]} 26... d4 {[%clk 0:02:21.6]} 27. cxd4 {[%clk 0:01:59.3]}
27... Rxd4 {[%clk 0:02:21.6]} 28. Bb2 {[%clk 0:01:58.6]} 28... Rxf4+ {[%clk
0:02:21.8]} 29. Ke2 {[%clk 0:01:50.3]} 29... Rb4 {[%clk 0:02:17.4]} 30. Bc3
{[%clk 0:01:43.8]} 30... Rb1 {[%clk 0:02:05.9]} 31. Rxc5+ {[%clk 0:01:38.1]}
31... Kf7 {[%clk 0:02:06]} 32. Rc7+ {[%clk 0:01:38]} 32... Ke6 {[%clk
0:02:05.7]} 33. Rxa7 {[%clk 0:01:36.8]} 33... h5 {[%clk 0:02:03.2]} 34. gxh5
{[%clk 0:01:35.3]} 34... gxh5 {[%clk 0:02:03.5]} 35. Rh7 {[%clk 0:01:35.4]}
35... Rb5 {[%clk 0:01:55.7]} 36. Kf3 {[%clk 0:01:33.1]} 36... Rf5+ {[%clk
0:01:54.1]} 37. Kg3 {[%clk 0:01:32.9]} 37... Rc5 {[%clk 0:01:53.1]} 38. Rh6+
{[%clk 0:01:29]} 38... Kf7 {[%clk 0:01:50]} 39. Bd4 {[%clk 0:01:20.3]} 39...
Rxc2 {[%clk 0:01:47.9]} 40. Bxb6 {[%clk 0:01:09.1]} 40... Rxa2 {[%clk
0:01:47.6]} 41. Kh4 {[%clk 0:01:08.3]} 41... Ra3 {[%clk 0:01:44.4]} 42. Rxh5
{[%clk 0:01:06.9]} 42... Ra4+ {[%clk 0:01:41]} 43. Kg5 {[%clk 0:01:03.6]} 43...
Rb4 {[%clk 0:01:39.8]} 44. Be3 {[%clk 0:00:59.8]} 44... Rb3 {[%clk 0:01:38.7]}
45. Bf4 {[%clk 0:00:58.6]} 45... Rb5+ {[%clk 0:01:36.7]} 46. Kg4 {[%clk
0:00:58.4]} 46... Rb4 {[%clk 0:01:37]} 47. Rf5+ {[%clk 0:00:57.7]} 47... Kg6
{[%clk 0:01:37]} 48. Rg5+ {[%clk 0:00:57.1]} 48... Kh7 {[%clk 0:01:37]} 49. h4
{[%clk 0:00:56]} 49... Ra4 {[%clk 0:01:36.3]} 50. h5 {[%clk 0:00:55.8]} 50...
Rc4 {[%clk 0:01:35]} 51. Kf5 {[%clk 0:00:55.7]} 51... Rc5+ {[%clk 0:01:34.7]}
52. Kf6 {[%clk 0:00:54.8]} 52... Rc6+ {[%clk 0:01:30.3]} 53. Ke7 {[%clk
0:00:54.9]} 53... Rc4 {[%clk 0:01:29]} 54. Be5 {[%clk 0:00:53.5]} 54... Kh6
{[%clk 0:01:28.3]} 55. Rf5 {[%clk 0:00:50.4]} 55... Rh4 {[%clk 0:01:27.8]} 56.
Bf4+ {[%clk 0:00:47.4]} 56... Kh7 {[%clk 0:01:24.4]} 57. Kf7 {[%clk 0:00:46.1]}
57... Rh1 {[%clk 0:01:19.7]} 58. Rf6 {[%clk 0:00:46]} 58... Rxh5 {[%clk
0:01:17.6]} 59. Bd6 {[%clk 0:00:40.2]} 59... Rd5 {[%clk 0:01:10.8]} 60. Be7
{[%clk 0:00:38.6]} 60... Rd1 {[%clk 0:01:06.5]} 61. Rf3 {[%clk 0:00:37.3]} 61...
Rh1 {[%clk 0:01:04.7]} 62. Rg3 {[%clk 0:00:36.2]} 62... Kh6 {[%clk 0:01:03.1]}
63. Kf6 {[%clk 0:00:32.1]} 63... Rf1+ {[%clk 0:01:01.3]} 64. Ke6 {[%clk
0:00:31.9]} 64... Re1+ {[%clk 0:01:00.9]} 65. Kf7 {[%clk 0:00:31.3]} 65... Rf1+
{[%clk 0:01:01]} 66. Bf6 {[%clk 0:00:31.3]} 66... Rh1 {[%clk 0:00:52]} 67. Bg7+
{[%clk 0:00:27.2]} 67... Kh5 {[%clk 0:00:51.7]} 68. Bf6 {[%clk 0:00:27.1]} 68...
Kh6 {[%clk 0:00:48.4]} 69. Rg8 {[%clk 0:00:25.7]} 69... Rg1 {[%clk 0:00:30]} 70.
Rh8# {[%clk 0:00:23.7]} 1-0

[Event "Late-Titled-Tuesday-Blitz-January-16-2024"]
[Site "Chess.com"]
[Date "2024.01.16"]
[Round "9"]
[White "APOKALIPSA13"]
[Black "angelgab3"]
[Result "0-1"]
[WhiteElo "2189"]
[BlackElo "2594"]
[TimeControl "180+1"]
[EndTime "15:46:55 PST"]
[Termination "angelgab3 won on time"]

1. e4 {[%clk 0:03:00]} 1... e5 {[%clk 0:02:59.5]} 2. d4 {[%clk 0:02:59.7]} 2...
exd4 {[%clk 0:02:59.6]} 3. Qxd4 {[%clk 0:03:00.5]} 3... Nc6 {[%clk 0:02:59.6]}
4. Qe3 {[%clk 0:03:01]} 4... Nge7 {[%clk 0:02:54]} 5. c4 {[%clk 0:02:59.3]} 5...
Ng6 {[%clk 0:02:54.9]} 6. Bd2 {[%clk 0:02:57.6]} 6... Bb4 {[%clk 0:02:42]} 7.
Bxb4 {[%clk 0:02:54]} 7... Nxb4 {[%clk 0:02:42.9]} 8. Qc3 {[%clk 0:02:53.4]}
8... Qe7 {[%clk 0:02:39.7]} 9. Nd2 {[%clk 0:02:50.8]} 9... O-O {[%clk
0:02:36.5]} 10. a3 {[%clk 0:02:50.1]} 10... Nc6 {[%clk 0:02:33.9]} 11. O-O-O
{[%clk 0:02:48.9]} 11... d6 {[%clk 0:02:33.9]} 12. g3 {[%clk 0:02:47.2]} 12...
f5 {[%clk 0:02:31.4]} 13. exf5 {[%clk 0:02:26.5]} 13... Bxf5 {[%clk 0:02:32.3]}
14. f4 {[%clk 0:02:25.4]} 14... Rae8 {[%clk 0:02:28.5]} 15. Bg2 {[%clk
0:02:16.1]} 15... Qe3 {[%clk 0:02:16.9]} 16. Bd5+ {[%clk 0:02:15.9]} 16... Kh8
{[%clk 0:02:16.6]} 17. Nf3 {[%clk 0:02:16.1]} 17... Qxc3+ {[%clk 0:02:15.3]} 18.
bxc3 {[%clk 0:02:17]} 18... Nd8 {[%clk 0:02:09.8]} 19. Nd4 {[%clk 0:02:14.3]}
19... Bg4 {[%clk 0:02:06]} 20. Rde1 {[%clk 0:02:13.4]} 20... c6 {[%clk
0:02:03.5]} 21. Bg2 {[%clk 0:02:13.1]} 21... h5 {[%clk 0:02:01.1]} 22. h3 {[%clk
0:02:10.7]} 22... Bd7 {[%clk 0:01:59.4]} 23. Ne4 {[%clk 0:02:07]} 23... h4
{[%clk 0:01:56.5]} 24. f5 {[%clk 0:01:49.8]} 24... Ne5 {[%clk 0:01:50.7]} 25.
Ref1 {[%clk 0:01:31.7]} 25... Nxc4 {[%clk 0:01:42.5]} 26. Rf4 {[%clk 0:01:08.5]}
26... hxg3 {[%clk 0:01:38.8]} 27. Rh4+ {[%clk 0:01:03.1]} 27... Kg8 {[%clk
0:01:37.4]} 28. Nxg3 {[%clk 0:01:02.5]} 28... Ne3 {[%clk 0:01:34.6]} 29. Rg1
{[%clk 0:00:52.5]} 29... Nxf5 {[%clk 0:01:30.9]} 30. Ngxf5 {[%clk 0:00:41]}
30... Bxf5 {[%clk 0:01:31.8]} 31. Rh5 {[%clk 0:00:39.8]} 31... Bd7 {[%clk
0:01:20.7]} 32. Rg5 {[%clk 0:00:37.8]} 32... Re7 {[%clk 0:01:14.8]} 33. h4
{[%clk 0:00:32.3]} 33... Ne6 {[%clk 0:01:12.9]} 34. Nxe6 {[%clk 0:00:27]} 34...
Bxe6 {[%clk 0:01:13.8]} 35. h5 {[%clk 0:00:27.5]} 35... Rf6 {[%clk 0:01:13]} 36.
Be4 {[%clk 0:00:22]} 36... Kh8 {[%clk 0:01:08.4]} 37. Bd3 {[%clk 0:00:17.5]}
37... Bd7 {[%clk 0:01:04.7]} 38. Kb2 {[%clk 0:00:13.5]} 38... Be8 {[%clk
0:01:03.2]} 39. R1g3 {[%clk 0:00:11.6]} 39... Rh6 {[%clk 0:01:02.8]} 40. Rh3
{[%clk 0:00:10.9]} 40... Re5 {[%clk 0:01:01.5]} 41. Rxe5 {[%clk 0:00:10.9]}
41... dxe5 {[%clk 0:01:02.4]} 42. Be2 {[%clk 0:00:10.6]} 42... g6 {[%clk
0:01:01.7]} 43. Re3 {[%clk 0:00:10.1]} 43... gxh5 {[%clk 0:01:02.6]} 44. Rxe5
{[%clk 0:00:10.3]} 44... Bf7 {[%clk 0:01:03]} 45. Re7 {[%clk 0:00:10.1]} 45...
Re6 {[%clk 0:00:59.4]} 46. Rxf7 {[%clk 0:00:10.3]} 46... Rxe2+ {[%clk
0:00:59.4]} 47. Kb3 {[%clk 0:00:11.2]} 47... b5 {[%clk 0:00:59]} 48. Rxa7 {[%clk
0:00:11.4]} 48... h4 {[%clk 0:00:58.5]} 49. Rc7 {[%clk 0:00:11.6]} 49... Re6
{[%clk 0:00:56.6]} 50. c4 {[%clk 0:00:10.6]} 50... h3 {[%clk 0:00:55.5]} 51. Rf7
{[%clk 0:00:10.1]} 51... Re3+ {[%clk 0:00:49.3]} 52. Kb4 {[%clk 0:00:09.8]}
52... Re4 {[%clk 0:00:49.7]} 53. Kc5 {[%clk 0:00:09.2]} 53... Rxc4+ {[%clk
0:00:49.5]} 54. Kb6 {[%clk 0:00:09.5]} 54... h2 {[%clk 0:00:48.7]} 55. Rf1
{[%clk 0:00:09]} 55... Rc2 {[%clk 0:00:49.1]} 56. Rh1 {[%clk 0:00:08.8]} 56...
Kg7 {[%clk 0:00:49.3]} 57. Ka5 {[%clk 0:00:07.9]} 57... Kg6 {[%clk 0:00:49.4]}
58. Kb4 {[%clk 0:00:08]} 58... Kg5 {[%clk 0:00:49.9]} 59. a4 {[%clk 0:00:07.7]}
59... bxa4 {[%clk 0:00:48.6]} 60. Kxa4 {[%clk 0:00:08.6]} 60... Kg4 {[%clk
0:00:48.9]} 61. Kb3 {[%clk 0:00:09.4]} 61... Rf2 {[%clk 0:00:47.9]} 62. Kc4
{[%clk 0:00:07.6]} 62... Kg3 {[%clk 0:00:48.3]} 63. Kc5 {[%clk 0:00:07.8]} 63...
Kg2 {[%clk 0:00:48.9]} 0-1

[Event "Late-Titled-Tuesday-Blitz-January-16-2024"]
[Site "Chess.com"]
[Date "2024.01.16"]
[Round "9"]
[White "platy3"]
[Black "GMKrikor"]
[Result "0-1"]
[WhiteElo "2871"]
[BlackElo "2751"]
[TimeControl "180+1"]
[EndTime "15:46:56 PST"]
[Termination "GMKrikor won by resignation"]

1. Nf3 {[%clk 0:02:52.9]} 1... d5 {[%clk 0:02:59.2]} 2. e3 {[%clk 0:02:52.6]}
2... Nf6 {[%clk 0:02:55.8]} 3. c4 {[%clk 0:02:52.3]} 3... e6 {[%clk 0:02:54.3]}
4. b3 {[%clk 0:02:52.9]} 4... a6 {[%clk 0:02:52.6]} 5. Bb2 {[%clk 0:02:53.4]}
5... Bd6 {[%clk 0:02:52]} 6. Nc3 {[%clk 0:02:53.4]} 6... b6 {[%clk 0:02:52.1]}
7. cxd5 {[%clk 0:02:52.2]} 7... exd5 {[%clk 0:02:53]} 8. g3 {[%clk 0:02:52.1]}
8... O-O {[%clk 0:02:47.5]} 9. Bg2 {[%clk 0:02:51.4]} 9... Bb7 {[%clk
0:02:47.4]} 10. O-O {[%clk 0:02:51.4]} 10... Re8 {[%clk 0:02:45.7]} 11. d4
{[%clk 0:02:51.1]} 11... Nbd7 {[%clk 0:02:43.8]} 12. Rc1 {[%clk 0:02:50.5]}
12... Qe7 {[%clk 0:02:41.3]} 13. Ne2 {[%clk 0:02:46.6]} 13... a5 {[%clk
0:02:40.9]} 14. Nf4 {[%clk 0:02:44.8]} 14... c6 {[%clk 0:02:22.2]} 15. Qc2
{[%clk 0:02:39.5]} 15... Rac8 {[%clk 0:02:17.9]} 16. Rfd1 {[%clk 0:02:33]} 16...
g6 {[%clk 0:02:14.7]} 17. Nd3 {[%clk 0:02:26.9]} 17... Ne4 {[%clk 0:02:11.6]}
18. Nde5 {[%clk 0:02:21.3]} 18... Nxe5 {[%clk 0:02:04.5]} 19. dxe5 {[%clk
0:02:14.1]} 19... Ba3 {[%clk 0:01:59.1]} 20. Bh3 {[%clk 0:01:51.3]} 20... Rcd8
{[%clk 0:01:43]} 21. Bxa3 {[%clk 0:01:49.8]} 21... Qxa3 {[%clk 0:01:37.9]} 22.
Nd4 {[%clk 0:01:50.7]} 22... Rxe5 {[%clk 0:01:05.7]} 23. Nxc6 {[%clk 0:01:46.1]}
23... Bxc6 {[%clk 0:01:05.8]} 24. Qxc6 {[%clk 0:01:46.9]} 24... Qxa2 {[%clk
0:01:06.5]} 25. Qc2 {[%clk 0:00:59.8]} 25... Qxc2 {[%clk 0:01:06.2]} 26. Rxc2
{[%clk 0:01:00.7]} 26... Nc5 {[%clk 0:01:06.8]} 27. Rb2 {[%clk 0:00:53]} 27...
Re4 {[%clk 0:00:47.2]} 28. Bg2 {[%clk 0:00:52.7]} 28... Rb4 {[%clk 0:00:47.4]}
29. Bxd5 {[%clk 0:00:53.3]} 29... Kg7 {[%clk 0:00:46.2]} 30. Rbd2 {[%clk
0:00:47.4]} 30... Nxb3 {[%clk 0:00:38]} 31. Rd3 {[%clk 0:00:37.1]} 31... Nc5
{[%clk 0:00:36.8]} 32. R3d2 {[%clk 0:00:37]} 32... a4 {[%clk 0:00:36.3]} 33. Kg2
{[%clk 0:00:34.1]} 33... a3 {[%clk 0:00:27.7]} 34. Ra2 {[%clk 0:00:34.3]} 34...
Ra4 {[%clk 0:00:21]} 35. f3 {[%clk 0:00:27]} 35... f5 {[%clk 0:00:20]} 36. Kf2
{[%clk 0:00:21.3]} 36... Kf6 {[%clk 0:00:09.5]} 37. Ke2 {[%clk 0:00:20.2]} 37...
Ke5 {[%clk 0:00:08.5]} 38. f4+ {[%clk 0:00:20.1]} 38... Kf6 {[%clk 0:00:09]} 39.
Rad2 {[%clk 0:00:13]} 39... Ke7 {[%clk 0:00:05.9]} 40. h4 {[%clk 0:00:11.1]}
40... Rd6 {[%clk 0:00:05.8]} 41. Ba2 {[%clk 0:00:08.4]} 41... Rxd2+ {[%clk
0:00:05.4]} 42. Rxd2 {[%clk 0:00:09.3]} 42... Ne4 {[%clk 0:00:05.8]} 43. Rc2
{[%clk 0:00:09.9]} 43... Kd6 {[%clk 0:00:05.4]} 44. Kf3 {[%clk 0:00:09.7]} 44...
h5 {[%clk 0:00:05.4]} 45. Rc8 {[%clk 0:00:09.1]} 45... b5 {[%clk 0:00:03.6]} 46.
Rb8 {[%clk 0:00:07.8]} 46... Nc3 {[%clk 0:00:03.3]} 47. Bb3 {[%clk 0:00:03.3]}
47... a2 {[%clk 0:00:03.9]} 48. Bxa2 {[%clk 0:00:03.7]} 48... Rxa2 {[%clk
0:00:04.5]} 49. Rb6+ {[%clk 0:00:03.9]} 49... Kc5 {[%clk 0:00:04.6]} 50. Rxg6
{[%clk 0:00:03.4]} 50... Ne4 {[%clk 0:00:05]} 0-1

[Event "Late-Titled-Tuesday-Blitz-January-16-2024"]
[Site "Chess.com"]
[Date "2024.01.16"]
[Round "9"]
[White "GlavkonVVS"]
[Black "ChessSwole"]
[Result "0-1"]
[WhiteElo "2480"]
[BlackElo "2666"]
[TimeControl "180+1"]
[EndTime "15:46:57 PST"]
[Termination "ChessSwole won on time"]

1. c4 {[%clk 0:02:46.8]} 1... g6 {[%clk 0:02:58.2]} 2. Nc3 {[%clk 0:02:45.9]}
2... Bg7 {[%clk 0:02:59.1]} 3. Nf3 {[%clk 0:02:46.4]} 3... e6 {[%clk 0:02:56.5]}
4. d4 {[%clk 0:02:46.8]} 4... Ne7 {[%clk 0:02:56]} 5. e4 {[%clk 0:02:45.2]} 5...
d5 {[%clk 0:02:56.4]} 6. Bg5 {[%clk 0:02:42.9]} 6... O-O {[%clk 0:02:42]} 7. Be2
{[%clk 0:02:30.7]} 7... h6 {[%clk 0:02:39.9]} 8. Bh4 {[%clk 0:02:30.7]} 8... g5
{[%clk 0:02:39.4]} 9. Bg3 {[%clk 0:02:31]} 9... dxe4 {[%clk 0:02:34.8]} 10. Nxe4
{[%clk 0:02:30]} 10... Nf5 {[%clk 0:02:35.3]} 11. Be5 {[%clk 0:02:15.6]} 11...
Nc6 {[%clk 0:02:22.7]} 12. Bxg7 {[%clk 0:02:13.6]} 12... Kxg7 {[%clk 0:02:23.6]}
13. d5 {[%clk 0:02:13.9]} 13... exd5 {[%clk 0:02:22.1]} 14. cxd5 {[%clk
0:02:14.3]} 14... Nce7 {[%clk 0:02:20]} 15. Nc3 {[%clk 0:02:06.6]} 15... Ng6
{[%clk 0:02:13.9]} 16. O-O {[%clk 0:02:04.1]} 16... Re8 {[%clk 0:02:08.4]} 17.
Bb5 {[%clk 0:02:03.7]} 17... Bd7 {[%clk 0:02:07.2]} 18. Bd3 {[%clk 0:02:02.5]}
18... Qf6 {[%clk 0:02:05.1]} 19. Qb3 {[%clk 0:01:52.4]} 19... g4 {[%clk
0:01:59.8]} 20. Bxf5 {[%clk 0:01:47.6]} 20... Bxf5 {[%clk 0:01:57.6]} 21. Nd2
{[%clk 0:01:46.9]} 21... Qb6 {[%clk 0:01:53.1]} 22. Nc4 {[%clk 0:01:40.3]} 22...
Qa6 {[%clk 0:01:50.3]} 23. Rfe1 {[%clk 0:01:38.2]} 23... Bd3 {[%clk 0:01:44.2]}
24. Ne3 {[%clk 0:01:36.6]} 24... h5 {[%clk 0:01:38.2]} 25. Rad1 {[%clk
0:01:34.4]} 25... Nf4 {[%clk 0:01:30.6]} 26. Qb4 {[%clk 0:01:25.4]} 26... Qf6
{[%clk 0:01:16.7]} 27. Rd2 {[%clk 0:01:19.7]} 27... b6 {[%clk 0:01:12.2]} 28.
Red1 {[%clk 0:01:15.5]} 28... Bg6 {[%clk 0:01:12]} 29. d6 {[%clk 0:01:14.5]}
29... c5 {[%clk 0:01:10.1]} 30. Qa4 {[%clk 0:01:08.7]} 30... a6 {[%clk 0:00:59]}
31. d7 {[%clk 0:01:04.3]} 31... Red8 {[%clk 0:00:58.9]} 32. Rd6 {[%clk 0:01:03]}
32... Qe5 {[%clk 0:00:47.3]} 33. Rxb6 {[%clk 0:01:01.5]} 33... Nd3 {[%clk
0:00:47]} 34. Rxg6+ {[%clk 0:00:52]} 34... fxg6 {[%clk 0:00:44.9]} 35. Rxd3
{[%clk 0:00:52.4]} 35... Rab8 {[%clk 0:00:38.8]} 36. Qc2 {[%clk 0:00:51.6]}
36... h4 {[%clk 0:00:35.6]} 37. Rd5 {[%clk 0:00:51.3]} 37... Qe6 {[%clk
0:00:31.7]} 38. g3 {[%clk 0:00:46.9]} 38... hxg3 {[%clk 0:00:30.3]} 39. hxg3
{[%clk 0:00:46.9]} 39... Rxd7 {[%clk 0:00:29.3]} 40. b3 {[%clk 0:00:45.3]} 40...
Rbd8 {[%clk 0:00:27.5]} 41. Qd2 {[%clk 0:00:39.4]} 41... Rxd5 {[%clk 0:00:25]}
42. Ncxd5 {[%clk 0:00:39.1]} 42... Qe5 {[%clk 0:00:22.5]} 43. Qc3 {[%clk
0:00:31.8]} 43... Qd4 {[%clk 0:00:21.6]} 44. Qc4 {[%clk 0:00:29.8]} 44... Kh7
{[%clk 0:00:20]} 45. Nf4 {[%clk 0:00:26]} 45... Qxc4 {[%clk 0:00:16.3]} 46. bxc4
{[%clk 0:00:25.9]} 46... Rd2 {[%clk 0:00:17.2]} 47. Ne6 {[%clk 0:00:22.4]} 47...
Rxa2 {[%clk 0:00:16.3]} 48. Nxc5 {[%clk 0:00:22.7]} 48... a5 {[%clk 0:00:16.9]}
49. Ne6 {[%clk 0:00:17.3]} 49... a4 {[%clk 0:00:16.3]} 50. c5 {[%clk 0:00:17.5]}
50... a3 {[%clk 0:00:16.9]} 51. Nc4 {[%clk 0:00:16.2]} 51... Ra1+ {[%clk
0:00:16]} 52. Kg2 {[%clk 0:00:16.3]} 52... a2 {[%clk 0:00:16.9]} 53. c6 {[%clk
0:00:13.2]} 53... Rc1 {[%clk 0:00:17]} 54. Ng5+ {[%clk 0:00:08.7]} 54... Kg8
{[%clk 0:00:15.1]} 55. Ne5 {[%clk 0:00:03.4]} 55... a1=Q {[%clk 0:00:14.1]} 0-1

[Event "Late-Titled-Tuesday-Blitz-January-16-2024"]
[Site "Chess.com"]
[Date "2024.01.16"]
[Round "9"]
[White "Goryachkina"]
[Black "dosto07"]
[Result "1-0"]
[WhiteElo "2692"]
[BlackElo "2541"]
[TimeControl "180+1"]
[EndTime "15:46:59 PST"]
[Termination "Goryachkina won on time"]

1. e4 {[%clk 0:03:00]} 1... e5 {[%clk 0:02:58.2]} 2. Nc3 {[%clk 0:02:59.5]} 2...
Nf6 {[%clk 0:02:57.1]} 3. g3 {[%clk 0:02:58.6]} 3... d5 {[%clk 0:02:55.7]} 4.
exd5 {[%clk 0:02:58.4]} 4... Nxd5 {[%clk 0:02:56.2]} 5. Bg2 {[%clk 0:02:58.5]}
5... Nxc3 {[%clk 0:02:55.7]} 6. bxc3 {[%clk 0:02:58.6]} 6... Nc6 {[%clk
0:02:55.8]} 7. Nf3 {[%clk 0:02:58.6]} 7... Bc5 {[%clk 0:02:56.2]} 8. O-O {[%clk
0:02:58.1]} 8... O-O {[%clk 0:02:56.8]} 9. Rb1 {[%clk 0:02:53.4]} 9... Bb6
{[%clk 0:02:54.9]} 10. d3 {[%clk 0:02:50.5]} 10... Bg4 {[%clk 0:02:54.6]} 11. h3
{[%clk 0:02:45.2]} 11... Bh5 {[%clk 0:02:54.2]} 12. Qe1 {[%clk 0:02:38.9]} 12...
f6 {[%clk 0:02:34.7]} 13. Be3 {[%clk 0:02:25.9]} 13... Qd7 {[%clk 0:02:29.1]}
14. g4 {[%clk 0:02:14.9]} 14... Bf7 {[%clk 0:02:28.1]} 15. Nh4 {[%clk
0:02:13.9]} 15... Bxa2 {[%clk 0:02:20.4]} 16. Rb2 {[%clk 0:02:08.8]} 16... Bd5
{[%clk 0:02:20.2]} 17. Bxd5+ {[%clk 0:02:03.2]} 17... Qxd5 {[%clk 0:02:20.2]}
18. c4 {[%clk 0:02:03.5]} 18... Qd7 {[%clk 0:02:03.2]} 19. c5 {[%clk 0:01:46.3]}
19... Ba5 {[%clk 0:02:03.1]} 20. Qb1 {[%clk 0:01:45]} 20... b6 {[%clk 0:01:55]}
21. Nf5 {[%clk 0:01:10.6]} 21... Ne7 {[%clk 0:01:52.2]} 22. Qa2+ {[%clk
0:01:05.9]} 22... Kh8 {[%clk 0:01:51.5]} 23. Ng3 {[%clk 0:00:53]} 23... Nd5
{[%clk 0:01:29.8]} 24. Qc4 {[%clk 0:00:48.4]} 24... Rab8 {[%clk 0:01:13.3]} 25.
c6 {[%clk 0:00:44.3]} 25... Qf7 {[%clk 0:01:07.7]} 26. Nf5 {[%clk 0:00:40.3]}
26... Ne7 {[%clk 0:01:04.7]} 27. Nxe7 {[%clk 0:00:17.7]} 27... Qxe7 {[%clk
0:01:04.9]} 28. f4 {[%clk 0:00:16.7]} 28... Rfe8 {[%clk 0:00:44.7]} 29. f5
{[%clk 0:00:16.5]} 29... Qd6 {[%clk 0:00:37.2]} 30. Qe4 {[%clk 0:00:15.6]} 30...
Red8 {[%clk 0:00:31.4]} 31. Rb3 {[%clk 0:00:12.9]} 31... Bc3 {[%clk 0:00:28.5]}
32. Rxc3 {[%clk 0:00:12.3]} 32... a5 {[%clk 0:00:28.1]} 33. Rc4 {[%clk
0:00:11.9]} 33... b5 {[%clk 0:00:26.9]} 34. Rc3 {[%clk 0:00:10.2]} 34... a4
{[%clk 0:00:26.4]} 35. Bc5 {[%clk 0:00:09.7]} 35... Qd5 {[%clk 0:00:21.8]} 36.
Qxd5 {[%clk 0:00:10]} 36... Rxd5 {[%clk 0:00:22.4]} 37. Rb1 {[%clk 0:00:09.7]}
37... g6 {[%clk 0:00:21]} 38. Kf2 {[%clk 0:00:09.6]} 38... Kg7 {[%clk 0:00:17]}
39. Ke3 {[%clk 0:00:08.8]} 39... Ra8 {[%clk 0:00:17]} 40. Ke4 {[%clk 0:00:08.8]}
40... Rdd8 {[%clk 0:00:14]} 41. Rxb5 {[%clk 0:00:08.6]} 41... Ra6 {[%clk
0:00:12.5]} 42. Ba3 {[%clk 0:00:07.8]} 42... Kf7 {[%clk 0:00:06.6]} 43. Rb7
{[%clk 0:00:07.6]} 43... Rd4+ {[%clk 0:00:06.1]} 44. Ke3 {[%clk 0:00:07.9]}
44... gxf5 {[%clk 0:00:05.4]} 45. gxf5 {[%clk 0:00:07.9]} 45... Kg7 {[%clk
0:00:05.6]} 46. Rxc7+ {[%clk 0:00:08.2]} 46... Kh6 {[%clk 0:00:06.3]} 47. Rb7
{[%clk 0:00:06.8]} 47... Rh4 {[%clk 0:00:04.8]} 48. c7 {[%clk 0:00:06.9]} 48...
Rxh3+ {[%clk 0:00:04.7]} 49. Kf2 {[%clk 0:00:07.4]} 49... Ra8 {[%clk 0:00:02.6]}
50. c8=Q {[%clk 0:00:07.4]} 50... Rxc8 {[%clk 0:00:01]} 51. Rxc8 {[%clk
0:00:08.3]} 1-0